fUSD/lending_fUSD_20250811
["ID","MTS","AMOUNT","RATE_DAILY","PERIOD"]
[378455742,1754872241987,-566.81,0.00018862,2]
[378455744,1754872241996,-400.0,0.00018862,2]
[378455746,1754872242006,-400.0,0.00018862,2]
[378455748,1754872242015,-1302.76,0.00018862,2]
[378455750,1754872242024,-400.0,0.00018862,2]
[378455752,1754872242033,-400.0,0.00018862,2]
[378455754,1754872242042,-400.0,0.00018862,2]
[378455756,1754872242051,-400.0,0.00018862,2]
[378455758,1754872242061,-400.0,0.00018862,2]
[378455760,1754872242071,-400.0,0.00018862,2]
[378455762,1754872242080,-400.0,0.00018862,2]
[378455764,1754872242090,-445.88,0.00018862,2]
[378455766,1754872242099,-400.0,0.00018862,2]
[378455768,1754872242109,-557.21,0.00018862,2]
[378455770,1754872242118,-470.94,0.00018862,2]
[378455772,1754872242128,-400.0,0.00018862,2]
[378455774,1754872242137,-564.78,0.00018862,2]
[378455776,1754872242145,-400.0,0.00018862,2]
[378455778,1754872242154,-400.0,0.00018862,2]
[378455780,1754872242163,-400.0,0.00018862,2]
[378455782,1754872242172,-655.38,0.00018862,2]
[378455784,1754872242182,-400.0,0.00018862,2]
[378455785,1754872242191,-992.76,0.00018862,2]
[378455787,1754872242201,-400.0,0.00018862,2]
[378455790,1754872242210,-400.0,0.00018862,2]
[378455792,1754872242219,-400.0,0.00018862,2]
[378455794,1754872242228,-400.0,0.00018862,2]
[378455796,1754872242237,-400.0,0.00018862,2]
[378455798,1754872242247,-411.11046573,0.00018862,2]
[378455800,1754872242256,-1182.9,0.00018862,2]
[378455801,1754872242265,-400.0,0.00018862,2]
[378455804,1754872242274,-400.0,0.00018862,2]
[378455806,1754872242283,-400.0,0.00018862,2]
[378455807,1754872242292,-400.0,0.00018862,2]
[378455810,1754872242302,-400.0,0.00018862,2]
[378455812,1754872242313,-400.0,0.00018862,2]
[378455814,1754872242322,-400.0,0.00018862,2]
[378455816,1754872242331,-1782.03,0.00018862,2]
[378455818,1754872242340,-695.39,0.00018862,2]
[378455820,1754872242349,-400.0,0.00018862,2]
[378455822,1754872242358,-400.0,0.00018862,2]
[378455824,1754872242368,-400.0,0.00018862,2]
[378455826,1754872242378,-420.58,0.00018862,2]
[378455828,1754872242387,-400.0,0.00018862,2]
[378455830,1754872242396,-400.0,0.00018862,2]
[378455832,1754872242405,-613.9,0.00018862,2]
[378455834,1754872242414,-400.0,0.00018862,2]
[378455836,1754872242423,-666.98,0.00018862,2]
[378455838,1754872242432,-400.0,0.00018862,2]
[378455840,1754872242441,-400.0,0.00018862,2]
[378455842,1754872242450,-400.0,0.00018862,2]
[378455844,1754872242459,-400.0,0.00018862,2]
[378455846,1754872242469,-1524.73,0.00018862,2]
[378455848,1754872242478,-412.65,0.00018862,2]
[378455850,1754872242487,-1081.86,0.00018862,2]
[378455852,1754872242498,-1953.45,0.00018862,2]
[378455854,1754872242507,-400.0,0.00018862,2]
[378455856,1754872242516,-920.3,0.00018862,2]
[378455858,1754872242526,-400.0,0.00018862,2]
[378455860,1754872242536,-1438.25,0.00018862,2]
[378455862,1754872242545,-400.0,0.00018862,2]
[378455864,1754872242555,-400.0,0.00018862,2]
[378455866,1754872242564,-400.0,0.00018862,2]
[378455868,1754872242573,-1547.18,0.00018862,2]
[378455870,1754872242583,-400.0,0.00018862,2]
[378455872,1754872242592,-1058.88,0.00018862,2]
[378455874,1754872242601,-400.0,0.00018862,2]
[378455876,1754872242610,-400.0,0.00018862,2]
[378455878,1754872242619,-507.57,0.00018862,2]
[378455880,1754872242629,-400.0,0.00018862,2]
[378455882,1754872242638,-643.64,0.00018862,2]
[378455884,1754872242647,-1176.81,0.00018862,2]
[378455886,1754872242656,-400.0,0.00018862,2]
[378455888,1754872242665,-401.27,0.00018862,2]
[378455890,1754872242674,-447.42,0.00018862,2]
[378455892,1754872242683,-679.02,0.00018862,2]
[378455894,1754872242693,-1076.49,0.00018862,2]
[378455896,1754872242702,-525.67,0.00018862,2]
[378455898,1754872242711,-1799.54,0.00018862,2]
[378455900,1754872242721,-577.18,0.00018862,2]
[378455902,1754872242731,-1631.68,0.00018862,2]
[378455904,1754872242740,-463.42,0.00018862,2]
[378455906,1754872242751,-400.0,0.00018862,2]
[378455908,1754872242763,-604.86,0.00018862,2]
[378455910,1754872242772,-599.67,0.00018862,2]
[378455912,1754872242782,-437.28,0.00018862,2]
[378455914,1754872242791,-1133.04,0.00018862,2]
[378455916,1754872242801,-745.83,0.00018862,2]
[378455918,1754872242813,-400.0,0.00018862,2]
[378455920,1754872242823,-624.44,0.00018862,2]
[378455922,1754872242833,-1976.37,0.00018862,2]
[378455924,1754872242842,-692.35,0.00018862,2]
[378455926,1754872242852,-1204.52,0.00018862,2]
[378455928,1754872242862,-462.86,0.00018862,2]
[378455930,1754872242871,-400.0,0.00018862,2]
[378455932,1754872242881,-1691.88,0.00018862,2]
[378455934,1754872242890,-967.65,0.00018862,2]
[378455936,1754872242900,-601.28,0.00018862,2]
[378455938,1754872242909,-1052.38,0.00018862,2]
[378455940,1754872242918,-400.0,0.00018862,2]
[378455942,1754872242927,-726.32,0.00018862,2]
[378455944,1754872242937,-2703.09,0.00018862,2]
[378455946,1754872242947,-878.35802251,0.00018868,2]
[378455948,1754872242956,-457.79793389,0.00018894,2]
[378455950,1754872242965,-842.72722232,0.00018894,2]
[378455952,1754872242975,-211.70500488,0.00018894,2]
[378455954,1754872242985,-359.78,0.000189,2]
[378455956,1754872242995,-173.23,0.000189,2]
[378455958,1754872243004,-302.15,0.000189,2]
[378455960,1754872243013,-173.23,0.000189,2]
[378455963,1754872243023,-359.78,0.000189,2]
[378455965,1754872243032,-173.23,0.000189,2]
[378455966,1754872243041,-359.78,0.000189,2]
[378455968,1754872243050,-171.89,0.000189,2]
[378455971,1754872243062,-217.6,0.000189,2]
[378455972,1754872243071,-155.57,0.000189,2]
[378455974,1754872243080,-359.78,0.000189,2]
[378455976,1754872243089,-530.07424117,0.00018903,2]
[378455978,1754872243098,-1860.06522782,0.00018944,2]
[378455980,1754872243108,-2972.69555239,0.00018944,2]
[378455982,1754872243117,-3707.12477873,0.00018944,2]
[378455984,1754872243126,-463.07461176,0.00018945,2]
[378455986,1754872243135,-1975.44366505,0.00018946,2]
[378455989,1754872243144,-8364.55126917,0.00018948,2]
[378455991,1754872243154,-8364.55126918,0.00018948,2]
[378455993,1754872243163,-1975.44366505,0.00018948,2]
[378455995,1754872243172,-16729.1025383,0.00018949,2]
[378455998,1754872243181,-371.07882423,0.00018949,2]
[378456001,1754872243190,-1975.44366505,0.00018951,2]
[378456003,1754872243199,-4194.38677808,0.00018952,2]
[378456005,1754872243209,-283.93562751,0.00018954,2]
[378456007,1754872243218,-8364.55126917,0.00018954,2]
[378456009,1754872243227,-3707.12477873,0.00018954,2]
[378456011,1754872243236,-8364.55126918,0.00018955,2]
[378456013,1754872243245,-463.07461176,0.00018955,2]
[378456015,1754872243254,-8364.55126917,0.00018956,2]
[378456017,1754872243263,-3785.26231122,0.00018956,2]
[378456019,1754872243272,-1975.44366504,0.00018956,2]
[378456021,1754872243280,-371.07882423,0.00018957,2]
[378456023,1754872243290,-1945.93969509,0.00018957,2]
[378456025,1754872243299,-3707.12477873,0.00018957,2]
[378456027,1754872243309,-497.40106715,0.00018959,2]
[378456029,1754872243318,-497.40106715,0.00018959,2]
[378456031,1754872243327,-4194.38677808,0.00018959,2]
[378456033,1754872243336,-1718.15,0.00018959,2]
[378456035,1754872243345,-817.0,0.00018959,2]
[378456037,1754872243354,-421.89,0.00018959,2]
[378456039,1754872243363,-2108.03,0.00018959,2]
[378456041,1754872243372,-5287.66,0.00018959,2]
[378456042,1754872243382,-1743.35,0.00018959,2]
[378456045,1754872243392,-400.0,0.00018959,2]
[378456047,1754872243401,-2064.78,0.00018959,2]
[378456049,1754872243410,-1975.44366504,0.0001896,2]
[378456051,1754872243419,-1975.44366504,0.00018961,2]
[378456053,1754872243428,-1975.44366505,0.00018962,2]
[378456055,1754872243438,-196.1740603,0.00018962,2]
[378456057,1754872243447,-507.29051672,0.00018963,2]
[378456059,1754872243456,-463.07461176,0.00018963,2]
[378456061,1754872243465,-2972.69555239,0.00018963,2]
[378456063,1754872243475,-14667.45482411,0.00018963,2]
[378456065,1754872243484,-283.93562751,0.00018964,2]
[378456067,1754872243496,-3785.26231122,0.00018965,2]
[378456069,1754872243506,-497.40106715,0.00018965,2]
[378456071,1754872243515,-196.1740603,0.00018965,2]
[378456073,1754872243525,-10777.4523347,0.00018966,2]
[378456075,1754872243534,-10777.4523347,0.00018967,2]
[378456077,1754872243544,-150.0,0.00018967,2]
[378456079,1754872243555,-681.0,0.00018967,2]
[378456081,1754872243564,-500.0,0.00018967,2]
[378456083,1754872243574,-150.0,0.00018967,2]
[378456085,1754872243584,-150.0,0.00018967,2]
[378456087,1754872243593,-150.0,0.00018967,2]
[378456088,1754872243602,-153.56205887,0.00018967,2]
[378456089,1754872243612,-150.0,0.00018967,2]
[378456090,1754872243621,-227.88548418,0.00018967,2]
[378456091,1754872243630,-500.0,0.00018967,2]
[378456092,1754872243639,-500.0,0.00018967,2]
[378456093,1754872243648,-150.0,0.00018967,2]
[378456094,1754872243658,-500.0,0.00018967,2]
[378456095,1754872243668,-150.0,0.00018967,2]
[378456096,1754872243679,-975.0,0.00018967,2]
[378456097,1754872243689,-8364.55126918,0.00018967,2]
[378456098,1754872243699,-3785.26231122,0.00018967,2]
[378456100,1754872243710,-1975.44366504,0.00018969,2]
[378456102,1754872243720,-500.0,0.0001897,2]
[378456104,1754872243730,-500.0,0.0001897,2]
[378456106,1754872243739,-500.0,0.0001897,2]
[378456108,1754872243750,-584.38487133,0.0001897,2]
[378456110,1754872243764,-700.0,0.0001897,2]
[378456112,1754872243773,-1300.0,0.0001897,2]
[378456114,1754872243783,-283.93562751,0.0001897,2]
[378456116,1754872243792,-10777.4523347,0.00018971,2]
[378456119,1754872243803,-3785.26231122,0.00018971,2]
[378456131,1754872243901,-196.1740603,0.00018972,2]
[378456133,1754872243910,-3707.12477873,0.00018973,2]
[378456135,1754872243921,-371.07882423,0.00018973,2]
[378456137,1754872243930,-499.76046511,0.00018973,2]
[378456139,1754872243939,-500.0,0.00018973,2]
[378456141,1754872243948,-450.0,0.00018973,2]
[378456143,1754872243957,-500.0,0.00018973,2]
[378456145,1754872243966,-500.0,0.00018973,2]
[378456147,1754872243975,-500.0,0.00018973,2]
[378456149,1754872243984,-501.23469655,0.00018973,2]
[378456151,1754872243993,-502.17369348,0.00018973,2]
[378456153,1754872244002,-585.58363503,0.00018973,2]
[378456155,1754872244012,-500.0,0.00018973,2]
[378456157,1754872244021,-500.0,0.00018973,2]
[378456159,1754872244031,-618.32026293,0.00018973,2]
[378456161,1754872244041,-500.0,0.00018973,2]
[378456163,1754872244051,-500.0,0.00018973,2]
[378456165,1754872244062,-500.0,0.00018973,2]
[378456167,1754872244071,-500.0,0.00018973,2]
[378456169,1754872244080,-500.0,0.00018973,2]
[378456171,1754872244090,-500.0,0.00018973,2]
[378456173,1754872244100,-500.0,0.00018973,2]
[378456175,1754872244109,-523.64143832,0.00018973,2]
[378456177,1754872244119,-500.0,0.00018973,2]
[378456179,1754872244129,-308.4471578,0.00018973,2]
[378456181,1754872244138,-500.0,0.00018973,2]
[378456183,1754872244147,-500.0,0.00018973,2]
[378456185,1754872244156,-370.46610602,0.00018973,2]
[378456187,1754872244165,-503.39020384,0.00018973,2]
[378456189,1754872244174,-500.0,0.00018973,2]
[378456191,1754872244183,-500.0,0.00018973,2]
[378456193,1754872244192,-500.0,0.00018973,2]
[378456195,1754872244201,-500.0,0.00018973,2]
[378456197,1754872244209,-500.0,0.00018973,2]
[378456199,1754872244218,-500.0,0.00018973,2]
[378456201,1754872244227,-500.0,0.00018973,2]
[378456203,1754872244236,-500.0,0.00018973,2]
[378456205,1754872244245,-500.0,0.00018973,2]
[378456207,1754872244254,-500.0,0.00018973,2]
[378456209,1754872244263,-500.0,0.00018973,2]
[378456211,1754872244272,-500.0,0.00018973,2]
[378456213,1754872244281,-500.0,0.00018973,2]
[378456215,1754872244290,-500.0,0.00018973,2]
[378456217,1754872244299,-500.0,0.00018973,2]
[378456219,1754872244309,-500.0,0.00018973,2]
[378456221,1754872244318,-1975.44366504,0.00018974,2]
[378456223,1754872244326,-507.29051672,0.00018974,2]
[378456225,1754872244336,-463.07461176,0.00018974,2]
[378456227,1754872244345,-1860.06522782,0.00018976,2]
[378456229,1754872244354,-180.108,0.00018976,2]
[378456231,1754872244363,-4438.134,0.00018976,2]
[378456233,1754872244371,-8364.55126918,0.00018977,2]
[378456234,1754872244380,-463.07461176,0.00018977,2]
[378456236,1754872244390,-1860.06522782,0.00018977,2]
[378456238,1754872244399,-507.29051672,0.00018978,2]
[378456241,1754872244408,-371.07882423,0.00018978,2]
[378456242,1754872244417,-507.29051672,0.00018978,2]
[378456245,1754872244427,-14667.45482411,0.00018979,2]
[378456246,1754872244437,-350.0,0.00018981,2]
[378456249,1754872244446,-2972.69555239,0.00018981,2]
[378456251,1754872244457,-497.40106715,0.00018982,2]
[378456253,1754872244466,-8364.55126917,0.00018983,2]
[378456255,1754872244476,-14667.45482411,0.00018983,2]
[378456257,1754872244485,-14667.45482411,0.00018984,2]
[378456259,1754872244494,-16729.1025383,0.00018985,2]
[378456261,1754872244504,-10777.4523347,0.00018985,2]
[378456263,1754872244514,-196.1740603,0.00018985,2]
[378456265,1754872244523,-1975.44366505,0.00018987,2]
[378456267,1754872244532,-1860.06522782,0.00018987,2]
[378456269,1754872244541,-3707.12477873,0.00018988,2]
[378456271,1754872244550,-507.29051672,0.00018988,2]
[378456273,1754872244560,-313.96982828,0.00018989,2]
[378456275,1754872244570,-497.40106715,0.00018989,2]
[378456277,1754872244578,-106968.925866,0.0001899,5]
[378456279,1754872244587,-129448.72538945,0.0001899,2]
[378456281,1754872244596,-313.96982828,0.0001899,2]
[378456282,1754872244605,-313.96982828,0.0001899,2]
[378456284,1754872244614,-4194.38677808,0.00018991,2]
[378456286,1754872244623,-16729.1025383,0.00018991,2]
[378456288,1754872244632,-16729.1025383,0.00018991,2]
[378456290,1754872244642,-1860.06522782,0.00018992,2]
[378456292,1754872244651,-16729.1025383,0.00018993,2]
[378456294,1754872244661,-10777.4523347,0.00018994,2]
[378456296,1754872244671,-2972.69555239,0.00018994,2]
[378456298,1754872244680,-8364.55126918,0.00018995,2]
[378456300,1754872244689,-3785.26231122,0.00018995,2]
[378456302,1754872244698,-2972.69555239,0.00018996,2]
[378456304,1754872244708,-283.93562751,0.00018996,2]
[378456306,1754872244717,-14667.45482411,0.00018996,2]
[378456309,1754872244726,-4194.38677808,0.00018997,2]
[378456310,1754872244736,-8364.55126917,0.00018997,2]
[378456312,1754872244745,-283.93562751,0.00018998,2]
[378456314,1754872244759,-400.0,0.00018998,2]
[378456316,1754872244768,-437.81,0.00018998,2]
[378456319,1754872244778,-400.0,0.00018998,2]
[378456320,1754872244787,-400.0,0.00018998,2]
[378456322,1754872244796,-481.96,0.00018998,2]
[378456324,1754872244807,-412.71,0.00018998,2]
[378456326,1754872244816,-400.0,0.00018998,2]
[378456328,1754872244825,-400.0,0.00018998,2]
[378456330,1754872244835,-400.0,0.00018998,2]
[378456332,1754872244845,-400.0,0.00018998,2]
[378456335,1754872244854,-743.85,0.00018998,2]
[378456337,1754872244862,-400.0,0.00018998,2]
[378456339,1754872244871,-400.0,0.00018998,2]
[378456341,1754872244880,-400.0,0.00018998,2]
[378456343,1754872244890,-400.0,0.00018998,2]
[378456345,1754872244900,-400.0,0.00018998,2]
[378456347,1754872244909,-505.14,0.00018998,2]
[378456349,1754872244919,-400.0,0.00018998,2]
[378456351,1754872244928,-400.0,0.00018998,2]
[378456353,1754872244937,-400.0,0.00018998,2]
[378456355,1754872244947,-400.0,0.00018998,2]
[378456357,1754872244955,-648.12,0.00018998,2]
[378456359,1754872244964,-400.0,0.00018998,2]
[378456361,1754872244973,-400.0,0.00018998,2]
[378456363,1754872244982,-400.0,0.00018998,2]
[378456365,1754872244991,-400.0,0.00018998,2]
[378456367,1754872245000,-407.24,0.00018998,2]
[378456369,1754872245010,-543.14,0.00018998,2]
[378456371,1754872245019,-639.03,0.00018998,2]
[378456373,1754872245028,-400.0,0.00018998,2]
[378456374,1754872245037,-400.0,0.00018998,2]
[378456377,1754872245047,-400.0,0.00018998,2]
[378456379,1754872245056,-502.99,0.00018998,2]
[378456381,1754872245066,-400.0,0.00018998,2]
[378456383,1754872245075,-400.0,0.00018998,2]
[378456384,1754872245084,-400.0,0.00018998,2]
[378456386,1754872245093,-400.0,0.00018998,2]
[378456388,1754872245102,-400.0,0.00018998,2]
[378456391,1754872245112,-400.0,0.00018998,2]
[378456392,1754872245122,-400.0,0.00018998,2]
[378456394,1754872245131,-494.9,0.00018998,2]
[378456397,1754872245141,-400.0,0.00018998,2]
[378456398,1754872245150,-400.0,0.00018998,2]
[378456400,1754872245159,-400.0,0.00018998,2]
[378456402,1754872245168,-400.0,0.00018998,2]
[378456404,1754872245177,-400.0,0.00018998,2]
[378456406,1754872245186,-400.0,0.00018998,2]
[378456408,1754872245195,-400.0,0.00018998,2]
[378456410,1754872245204,-400.0,0.00018998,2]
[378456412,1754872245213,-400.0,0.00018998,2]
[378456414,1754872245222,-400.0,0.00018998,2]
[378456416,1754872245231,-400.0,0.00018998,2]
[378456418,1754872245240,-490.64,0.00018998,2]
[378456420,1754872245249,-400.0,0.00018998,2]
[378456422,1754872245258,-400.0,0.00018998,2]
[378456424,1754872245267,-400.0,0.00018998,2]
[378456426,1754872245276,-400.0,0.00018998,2]
[378456428,1754872245285,-400.0,0.00018998,2]
[378456430,1754872245294,-400.0,0.00018998,2]
[378456432,1754872245304,-400.0,0.00018998,2]
[378456434,1754872245315,-400.0,0.00018998,2]
[378456436,1754872245324,-506.52,0.00018998,2]
[378456438,1754872245332,-400.0,0.00018998,2]
[378456440,1754872245338,-957.71,0.00018998,2]
[378456442,1754872245347,-400.0,0.00018998,2]
[378456444,1754872245358,-400.0,0.00018998,2]
[378456446,1754872245367,-400.0,0.00018998,2]
[378456448,1754872245376,-400.0,0.00018998,2]
[378456450,1754872245386,-400.0,0.00018998,2]
[378456452,1754872245395,-400.0,0.00018998,2]
[378456454,1754872245404,-400.0,0.00018998,2]
[378456456,1754872245413,-400.0,0.00018998,2]
[378456458,1754872245423,-400.0,0.00018998,2]
[378456460,1754872245432,-400.0,0.00018998,2]
[378456462,1754872245441,-400.0,0.00018998,2]
[378456465,1754872245451,-400.0,0.00018998,2]
[378456467,1754872245461,-400.0,0.00018998,2]
[378456469,1754872245472,-551.36,0.00018998,2]
[378456470,1754872245481,-400.0,0.00018998,2]
[378456473,1754872245490,-400.0,0.00018998,2]
[378456474,1754872245499,-400.0,0.00018998,2]
[378456476,1754872245508,-400.0,0.00018998,2]
[378456478,1754872245518,-400.0,0.00018998,2]
[378456480,1754872245527,-749.47,0.00018998,2]
[378456482,1754872245536,-400.0,0.00018998,2]
[378456484,1754872245546,-400.0,0.00018998,2]
[378456486,1754872245555,-400.0,0.00018998,2]
[378456488,1754872245564,-400.0,0.00018998,2]
[378456490,1754872245573,-400.0,0.00018998,2]
[378456492,1754872245582,-436.83,0.00018998,2]
[378456494,1754872245592,-400.0,0.00018998,2]
[378456496,1754872245602,-400.0,0.00018998,2]
[378456498,1754872245611,-400.0,0.00018998,2]
[378456500,1754872245620,-400.0,0.00018998,2]
[378456502,1754872245629,-400.0,0.00018998,2]
[378456504,1754872245639,-745.78,0.00018998,2]
[378456506,1754872245648,-400.0,0.00018998,2]
[378456508,1754872245657,-400.0,0.00018998,2]
[378456510,1754872245667,-400.0,0.00018998,2]
[378456512,1754872245676,-400.0,0.00018998,2]
[378456514,1754872245685,-400.0,0.00018998,2]
[378456516,1754872245694,-400.0,0.00018998,2]
[378456518,1754872245703,-417.99,0.00018998,2]
[378456520,1754872245713,-400.0,0.00018998,2]
[378456522,1754872245722,-500.0,0.00018998,2]
[378456524,1754872245731,-400.0,0.00018998,2]
[378456526,1754872245740,-400.0,0.00018998,2]
[378456528,1754872245751,-400.0,0.00018998,2]
[378456530,1754872245763,-611.64,0.00018998,2]
[378456532,1754872245772,-400.0,0.00018998,2]
[378456534,1754872245782,-400.0,0.00018998,2]
[378456536,1754872245791,-400.0,0.00018998,2]
[378456539,1754872245803,-400.0,0.00018998,2]
[378456541,1754872245813,-610.62,0.00018998,2]
[378456543,1754872245824,-517.32,0.00018998,2]
[378456545,1754872245834,-400.0,0.00018998,2]
[378456547,1754872245844,-447.22,0.00018998,2]
[378456549,1754872245854,-400.0,0.00018998,2]
[378456551,1754872245863,-400.0,0.00018998,2]
[378456553,1754872245872,-500.0,0.00018998,2]
[378456555,1754872245882,-400.0,0.00018998,2]
[378456557,1754872245891,-400.0,0.00018998,2]
[378456559,1754872245900,-400.0,0.00018998,2]
[378456561,1754872245908,-498.31,0.00018998,2]
[378456563,1754872245918,-573.44,0.00018998,2]
[378456565,1754872245927,-400.0,0.00018998,2]
[378456567,1754872245936,-400.0,0.00018998,2]
[378456569,1754872245945,-400.0,0.00018998,2]
[378456570,1754872245954,-400.0,0.00018998,2]
[378456571,1754872245962,-306.09620378,0.00018998,2]
[378456572,1754872245972,-553.34,0.00018998,2]
[378456573,1754872245981,-400.0,0.00018998,2]
[378456574,1754872245990,-400.0,0.00018998,2]
[378456575,1754872245999,-446.61,0.00018998,2]
[378456576,1754872246009,-458.05,0.00018998,2]
[378456577,1754872246017,-400.0,0.00018998,2]
[378456578,1754872246027,-400.0,0.00018998,2]
[378456579,1754872246036,-400.0,0.00018998,2]
[378456582,1754872246045,-400.0,0.00018998,2]
[378456584,1754872246054,-400.0,0.00018998,2]
[378456586,1754872246064,-400.0,0.00018998,2]
[378456588,1754872246073,-400.0,0.00018998,2]
[378456590,1754872246083,-400.0,0.00018998,2]
[378456593,1754872246092,-496.1,0.00018998,2]
[378456595,1754872246102,-1077.36,0.00018998,2]
[378456597,1754872246113,-400.0,0.00018998,2]
[378456598,1754872246122,-400.0,0.00018998,2]
[378456601,1754872246131,-388.59702483,0.00018998,2]
[378456602,1754872246140,-417.16,0.00018998,2]
[378456604,1754872246149,-926.42,0.00018998,2]
[378456606,1754872246159,-400.0,0.00018998,2]
[378456608,1754872246168,-442.37,0.00018998,2]
[378456610,1754872246177,-400.0,0.00018998,2]
[378456612,1754872246186,-546.57,0.00018998,2]
[378456614,1754872246195,-400.0,0.00018998,2]
[378456617,1754872246205,-314.91434466,0.00018998,2]
[378456618,1754872246214,-500.0,0.00018998,2]
[378456620,1754872246223,-479.31249943,0.00018998,2]
[378456622,1754872246233,-511.38794533,0.00018998,2]
[378456625,1754872246242,-500.0,0.00018998,2]
[378456627,1754872246252,-500.0,0.00018998,2]
[378456629,1754872246261,-500.0,0.00018998,2]
[378456631,1754872246270,-400.0,0.00018998,2]
[378456634,1754872246280,-754.78,0.00018998,2]
[378456637,1754872246289,-495.79,0.00018998,2]
[378456639,1754872246298,-400.0,0.00018998,2]
[378456641,1754872246308,-400.0,0.00018998,2]
[378456644,1754872246317,-401.63,0.00018998,2]
[378456646,1754872246327,-477.55,0.00018998,2]
[378456648,1754872246336,-400.0,0.00018998,2]
[378456650,1754872246345,-400.0,0.00018998,2]
[378456652,1754872246354,-400.0,0.00018998,2]
[378456654,1754872246364,-2290.81,0.00018998,2]
[378456656,1754872246373,-435.38,0.00018998,2]
[378456658,1754872246383,-400.0,0.00018998,2]
[378456660,1754872246392,-824.76,0.00018998,2]
[378456662,1754872246401,-400.0,0.00018998,2]
[378456663,1754872246410,-400.0,0.00018998,2]
[378456665,1754872246419,-700.48,0.00018998,2]
[378456668,1754872246429,-400.0,0.00018998,2]
[378456670,1754872246439,-400.0,0.00018998,2]
[378456671,1754872246448,-400.0,0.00018998,2]
[378456673,1754872246457,-400.0,0.00018998,2]
[378456675,1754872246466,-400.0,0.00018998,2]
[378456677,1754872246476,-400.0,0.00018998,2]
[378456679,1754872246485,-428.48,0.00018998,2]
[378456681,1754872246494,-400.0,0.00018998,2]
[378456683,1754872246504,-400.0,0.00018998,2]
[378456685,1754872246513,-400.0,0.00018998,2]
[378456687,1754872246523,-728.54,0.00018998,2]
[378456689,1754872246532,-400.0,0.00018998,2]
[378456691,1754872246541,-400.0,0.00018998,2]
[378456693,1754872246550,-400.0,0.00018998,2]
[378456695,1754872246562,-489.19,0.00018998,2]
[378456698,1754872246572,-400.0,0.00018998,2]
[378456700,1754872246582,-400.0,0.00018998,2]
[378456702,1754872246592,-400.0,0.00018998,2]
[378456703,1754872246601,-400.0,0.00018998,2]
[378456705,1754872246611,-400.0,0.00018998,2]
[378456708,1754872246621,-400.0,0.00018998,2]
[378456710,1754872246631,-400.0,0.00018998,2]
[378456712,1754872246641,-400.0,0.00018998,2]
[378456714,1754872246650,-900.15,0.00018998,2]
[378456716,1754872246660,-400.0,0.00018998,2]
[378456718,1754872246669,-246.41977109,0.00018998,2]
[378456720,1754872246679,-400.0,0.00018998,2]
[378456722,1754872246688,-400.0,0.00018998,2]
[378456724,1754872246698,-400.0,0.00018998,2]
[378456726,1754872246708,-400.0,0.00018998,2]
[378456728,1754872246718,-441.14,0.00018998,2]
[378456730,1754872246728,-400.0,0.00018998,2]
[378456732,1754872246737,-400.0,0.00018998,2]
[378456734,1754872246747,-400.0,0.00018998,2]
[378456736,1754872246762,-400.0,0.00018998,2]
[378456738,1754872246771,-400.0,0.00018998,2]